Cogmind - Beta 15 @@@ ROGUE MODE // 2025.09.02 @ 17:34:09 Player: Gumbus Result: Self-destructed Performance ------------- Evolutions (1) 500 Regions Visited (4) 800 Robots Destroyed (27) 135 Value Destroyed (619) 619 Prototype IDs (0) 0 Alien Tech Used (0) 0 Bonus (0) 0 TOTAL SCORE: 2054 Bonus ------- None Cogmind --------- Core Integrity 211/400 Matter 300/300 Energy 255/350 System Corruption 0% Temperature Cool (0) Movement Rolling (90) Location -9/Mines Parts ------- > --- POWER (2) -------- (None) > --- PROPULSION (2) --- Armored Wheel > --- UTILITY (3) ------ High-capacity Battery Weight Redist. System > --- WEAPON (2) ------- (None) > --- INVENTORY (5) ---- (None) Peak State ------------ > --- POWER ------------ Ion Engine Light Ion Engine > --- PROPULSION ------- Armored Wheel Armored Wheel > --- UTILITY ---------- Improved Heat Sink High-capacity Battery Weapon Shielding > --- WEAPON ----------- Medium Laser Medium Laser > --- INVENTORY -------- Armored Wheel Armored Wheel Weight Redist. System [Rating: 13] Favorites ----------- Power Light Ion Engine Engine Light Ion Engine Propulsion Armored Wheel Wheel Armored Wheel Hover Unit Hover Unit Flight Unit Flight Unit Utility High-capacity Battery Device Improved Heat Sink Storage High-capacity Battery Protection Weapon Shielding Weapon Medium Laser Energy Gun Medium Laser Build | -11 -10 -10 -9 -9 ------- Run | Yrd Mat Min Mat Min Slots Evolved 2 | . . . 2 . Power 1 | . . . 1 . Propulsion . | . . . . . Utility 1 | . . . 1 . Weapon . | . . . . . Parts Attached 22 | 6 9 . 7 . Power 6 | 1 2 . 3 . Engine 6 | 1 2 . 3 . Core . | . . . . . Reactor . | . . . . . Propulsion 8 | 2 4 . 2 . Treads . | . . . . . Leg . | . . . . . Wheel 6 | 2 2 . 2 . Hover 1 | . 1 . . . Flight 1 | . 1 . . . Utility 6 | 1 3 . 2 . Device 2 | . . . 2 . Storage 3 | 1 2 . . . Processor . | . . . . . Hackware . | . . . . . Protection 1 | . 1 . . . Artifact . | . . . . . Weapon 2 | 2 . . . . Energy Gun 2 | 2 . . . . Energy Cannon . | . . . . . Ballistic Gun . | . . . . . Ballistic Cannon . | . . . . . Launcher . | . . . . . Special Weapon . | . . . . . Impact Weapon . | . . . . . Slashing Weapon . | . . . . . Piercing Weapon . | . . . . . Special Melee Weapon . | . . . . . Unidentified Prototypes . | . . . . . Parts Lost 12 | . 2 . 8 2 Power 5 | . 1 . 4 . Propulsion 3 | . 1 . 1 1 Utility 2 | . . . 2 . Weapon 2 | . . . 1 1 Highest Loss Streak 4 | . 1 . 4 2 To Critical Strikes . | . . . . . Average Backups 2 | 1 2 5 2 . Power . | . . 1 . . Propulsion . | . . 2 1 . Utility 1 | . 1 2 . . Weapon . | . . . . . Tool/Special . | . . . . . Unused Backups . | . . . . . Power . | . . . . . Propulsion . | . . . . . Utility . | . . . . . Weapon . | . . . . . Tool/Special . | . . . . . Average Slot Usage (%) 85 | . 86 100 83 49 Engine 12 | . 13 14 13 . Wheel 17 | . 9 28 21 19 Hover 3 | . 8 . . . Device 4 | . . . 9 11 Storage 12 | . 14 14 11 11 Protection 10 | . 13 14 7 . Energy Gun 23 | . 27 28 20 8 Peak Build Rating 13 | 6 10 10 13 8 Average Rating 8 | 4 6 10 11 7 On Entrance 6 | . 6 10 10 8 Naked Turns . | . . . . . Heaviest Build 18 | 12 12 12 18 6 Greatest Support 30 | 20 24 24 30 30 Greatest Overweight (x) 3 | . 3 . . . Average Overweight (x) . | . . . . . Largest Inventory Capacity 8 | 8 8 5 5 5 Average Capacity 5 | 6 5 5 5 5 Most Carried 5 | 4 5 5 4 . Average Carried 2 | 1 2 5 2 . Final Capacity 8 | 8 5 5 5 5 Final Carried 5 | 1 5 5 . . Class Distribution -------------------- 100% | Mutant Dominant Class ---------------- Mutant | -10/Materials Mutant | -10/Mines Mutant | -9/Materials Mutant | -9/Mines Resources | -11 -10 -10 -9 -9 ----------- Run | Yrd Mat Min Mat Min Matter Collected 465 | 195 175 15 80 . Remotely . | . . . . . Salvage Created 774 | . 250 41 483 . Parts 49 | . 26 3 20 . Haulers Intercepted . | . . . . . Recyclers Shooed . | . . . . . Parts Field Recycled . | . . . . . Retrieved Matter . | . . . . . Parts Self-Destructed . | . . . . . Prevented . | . . . . . Kills | -11 -10 -10 -9 -9 ------- Run | Yrd Mat Min Mat Min Combat Hostiles Destroyed 23 | . 9 1 13 . Guns 21 | . 9 1 11 . Classes Destroyed 5 | . 4 . 1 . Builder 1 | . 1 . . . Watcher 3 | . 2 . 1 . Swarmer 11 | . 6 . 5 . Grunt 10 | . 3 1 6 . Sentry 2 | . . . 2 . Best Kill Streak 3 | . 3 1 3 . Combat Bots Only 3 | . 3 1 3 . Max Kills in Single Turn 2 | . 2 1 1 . Gunslinging 1 | . 1 . . . Exploded . | . . . . . Melee . | . . . . . Uniques/NPCs Destroyed . | . . . . . Combat | -11 -10 -10 -9 -9 -------- Run | Yrd Mat Min Mat Min Hostile Shots Fired 153 | . 36 6 97 14 Missed 52 | . 7 1 35 9 Hits 101 | . 29 5 62 5 Melee 2 | . . . . 2 Projectile 99 | . 29 5 62 3 Critical Strikes 1 | . . . 1 . Damage Taken 1250 | . 264 90 788 108 Core 326 | . 81 56 145 44 Absorbed by Shields . | . . . . . Redirected to Shielding 50 | . 15 7 28 . Regen/Repaired (Parts) 47 | . 19 . 28 . Core Remaining (%) 72 | 100 . 45 . . Volleys Fired 75 | . 24 3 48 . Largest 2 | . 2 2 2 . Hottest 100 | . 100 100 100 . Shots Fired 146 | . 48 6 92 . Gun 146 | . 48 6 92 . Cannon . | . . . . . Launcher . | . . . . . Special . | . . . . . Kinetic . | . . . . . Thermal 146 | . 48 6 92 . Explosive . | . . . . . Electromagnetic . | . . . . . Robot Hit Streak 8 | . 4 8 8 . Robot Miss Streak 3 | . 3 . 3 . Penetration Max . | . . . . . Secondary Targets 3 | . 1 . 2 . Max Gunslinging Chain 1 | . 1 . 1 . Shots Hit Robots 88 | . 23 6 59 . Core Hits 39 | . 16 3 20 . Critical Kills . | . . . . . Critical Parts Destroyed . | . . . . . Critical Strikes 14 | . 9 . 5 . Burn 14 | . 9 . 5 . Melee Attacks . | . . . . . Impact . | . . . . . Slashing . | . . . . . Piercing . | . . . . . Sneak Attacks . | . . . . . Combat Hostiles . | . . . . . Follow-up Attacks . | . . . . . Damage Inflicted 1123 | . 306 78 739 . Guns 1123 | . 306 78 739 . Cannons . | . . . . . Explosions . | . . . . . Melee . | . . . . . Ramming . | . . . . . Kinetic . | . . . . . Thermal 1123 | . 306 78 739 . Explosive . | . . . . . Electromagnetic . | . . . . . Impact . | . . . . . Slashing . | . . . . . Piercing . | . . . . . Highest Corruption . | . . . . . Average Corruption . | . . . . . Corruption Purged . | . . . . . Corruption Blocked . | . . . . . Overload Shots . | . . . . . Overflow Damage . | . . . . . Projectiles . | . . . . . Explosions . | . . . . . Melee . | . . . . . Knockbacks . | . . . . . Impact . | . . . . . Kinetic . | . . . . . Secondary . | . . . . . Self-Inflicted Damage . | . . . . . Shots . | . . . . . Rammed . | . . . . . Targets Rammed . | . . . . . Kicked . | . . . . . Crushed . | . . . . . Highest Temperature 283 | . 185 105 283 . Average Temperature 75 | . 70 48 85 . Received Heat Transfer 390 | . 60 51 279 . Siege Activations . | . . . . . Martial Activations . | . . . . . Shielding Activations . | . . . . . Robots Disrupted . | . . . . . Combat Hostiles . | . . . . . Robots Corrupted . | . . . . . Combat Hostiles . | . . . . . Parts Fried . | . . . . . Impact Corruptions . | . . . . . Robots Melted 2 | . . . 2 . Combat Hostiles 2 | . . . 2 . Parts Melted 18 | . 8 . 10 . Heat Transferred 4329 | . 1554 222 2553 . Parts Sabotaged . | . . . . . Parts Stolen . | . . . . . Parts Stripped . | . . . . . Power Chain Reactions . | . . . . . Alert | -11 -10 -10 -9 -9 ------- Run | Yrd Mat Min Mat Min Maximum Alert Level . | . . . . . Low Security (%) 100 | 100 100 100 100 100 Level 1 . | . . . . . Level 2 . | . . . . . Level 3 . | . . . . . Level 4 . | . . . . . Level 5 . | . . . . . High Security . | . . . . . Max Security . | . . . . . Peak Influence 147 | . 104 25 147 46 Initial 46 | . . 11 . 46 Average 38 | . 36 5 66 22 Influence Increases 659 | . 257 35 367 . Destroy 0b10 Robot/C 460 | . 180 20 260 . Destroy 0b10 Robot/NC 20 | . 15 . 5 . Destroy Leader 86 | . 44 . 42 . Successful Hack 2 | . 2 . . . Destroy Structure 1 | . 1 . . . Lose Combat Pursuer 90 | . 15 15 60 . Influence Decreases 659 | . 227 65 246 121 Entered New Map 94 | . . 19 . 75 Time Decay 449 | . 207 46 166 30 Lost Part 116 | . 20 . 80 16 Squads Dispatched 4 | . 2 . 2 . Investigation 1 | . 1 . . . Extermination . | . . . . . Reinforcement 3 | . 1 . 2 . Assault . | . . . . . Garrison . | . . . . . Intercept . | . . . . . Searches Triggered . | . . . . . Construction Impeded . | . . . . . Haulers Reinforced . | . . . . . Active Scanning Responses . | . . . . . Cargo Convoy Interrupts . | . . . . . Stealth | -11 -10 -10 -9 -9 --------- Run | Yrd Mat Min Mat Min Distress Signals 4 | . 2 . 2 . Communications Jammed . | . . . . . Distress Signals . | . . . . . Times Spotted 46 | . 16 3 25 2 Peak Tracking Total 7 | . 5 2 7 2 Tactical Retreats 5 | . 1 1 3 . Traps | -11 -10 -10 -9 -9 ------- Run | Yrd Mat Min Mat Min Traps Triggered 1 | . 1 . . . Indirectly . | . . . . . Trap Hack Attempts . | . . . . . Triggered . | . . . . . Disarmed . | . . . . . Reprogrammed . | . . . . . Reused . | . . . . . Traps Extracted . | . . . . . Installed . | . . . . . Triggered . | . . . . . Machines | -11 -10 -10 -9 -9 ---------- Run | Yrd Mat Min Mat Min Machines Disabled . | . . . . . Max in Single Turn . | . . . . . Machines Repaired . | . . . . . Machines Dismantled . | . . . . . Machines Sabotaged . | . . . . . Overloaded Fab Kills . | . . . . . Hacking | -11 -10 -10 -9 -9 --------- Run | Yrd Mat Min Mat Min Machines Accessed 2 | . 1 . 1 . Terminals . | . . . . . Fabricators . | . . . . . Repair Stations 2 | . 1 . 1 . Recycling Units . | . . . . . Scanalyzers . | . . . . . Garrison Access . | . . . . . Total Hacks 6 | . 3 . 3 . Successful 5 | . 3 . 2 . Failed 1 | . . . 1 . Catastrophic . | . . . . . Database Lockouts . | . . . . . Manual . | . . . . . Terminals . | . . . . . Fabricators . | . . . . . Repair Stations 6 | . 3 . 3 . Recycling Units . | . . . . . Scanalyzers . | . . . . . Garrison Access . | . . . . . Terminal Hacks . | . . . . . Fabricator Hacks . | . . . . . Repair Station Hacks 5 | . 3 . 2 . Scan Component 3 | . 2 . 1 . Repair 2 | . 1 . 1 . Recycling Unit Hacks . | . . . . . Scanalyzer . | . . . . . Garrison Access Hacks . | . . . . . Unauthorized Hacks . | . . . . . Terminals . | . . . . . Fabricators . | . . . . . Repair Stations . | . . . . . Recycling Units . | . . . . . Scanalyzers . | . . . . . Garrison Access . | . . . . . Data Cores Recovered . | . . . . . Used . | . . . . . Hacking Detections 1 | . . . 1 . Full Trace Events . | . . . . . Feedback Events . | . . . . . Feedback Blocked . | . . . . . Robot Schematics Acquired . | . . . . . Robots Built . | . . . . . Authchips . | . . . . . Time . | . . . . . Total Robot Build Rating . | . . . . . Part Schematics Acquired . | . . . . . Parts Built . | . . . . . Authchips . | . . . . . Time . | . . . . . Total Part Build Rating . | . . . . . Parts Repaired 2 | . 1 . 1 . Time 52 | . 26 . 26 . Parts Recycled . | . . . . . Recycled Matter . | . . . . . Retrieved Matter . | . . . . . Retrieved Components . | . . . . . Parts Scanalyzed . | . . . . . Part Schematics Acquired . | . . . . . Parts Damaged . | . . . . . Bothacking | -11 -10 -10 -9 -9 ------------ Run | Yrd Mat Min Mat Min Used RIF Installer . | . . . . . Robots Hacked . | . . . . . Non-combat . | . . . . . Combat . | . . . . . Robot Hacks Applied . | . . . . . Relay Couplers Released . | . . . . . Fabnet Peak Effective % . | . . . . . Robots Rewired . | . . . . . Allies Hacked . | . . . . . Hacks Repelled . | . . . . . Allies | -11 -10 -10 -9 -9 -------- Run | Yrd Mat Min Mat Min Total Allies . | . . . . . Largest Group . | . . . . . Highest-Rated Group . | . . . . . Highest-Rated Ally . | . . . . . Total Orders . | . . . . . Ally Attacks . | . . . . . Total Damage . | . . . . . Kills . | . . . . . Allies Corrupted . | . . . . . Allies Melted . | . . . . . Intel | -11 -10 -10 -9 -9 ------- Run | Yrd Mat Min Mat Min Active Infowar (turns) . | . . . . . Robot Analysis Total . | . . . . . Derelict Logs Recovered 1 | . . 1 . . Drone Launches . | . . . . . Drone Recoveries . | . . . . . Exploration | -11 -10 -10 -9 -9 ------------- Run | Yrd Mat Min Mat Min Turns Passed 1365 | 53 575 211 421 105 Spaces Moved 1135 | 54 447 225 293 116 Core 15 | 9 6 . . . Treads . | . . . . . Legs . | . . . . . Wheels 864 | 45 185 225 293 116 Hover 256 | . 256 . . . Flight . | . . . . . Fastest Speed 50 | 50 80 90 90 90 Average Speed 95 | 75 106 90 90 90 Slowest Speed 200 | 80 200 90 90 90 Overloaded Moves . | . . . . . Propulsion Burnouts . | . . . . . Robots Hopped . | . . . . . Potential Cave-ins . | . . . . . Cave-ins Triggered . | . . . . . Exploration Rate (%) 30 | 3 57 55 18 21 Regions Visited 4 Branch Regions 2 Pre-discovered Areas 1 | . . 1 . . Known Exits Taken . | . . . . . Unknown Exits Taken 4 | 1 1 1 1 . Scrap Searched 1 | . . 1 . . Spaces Dug . | . . . . . Terrain Destroyed . | . . . . . Melee . | . . . . . Projectile . | . . . . . AOE . | . . . . . Terrain Rammed . | . . . . . Walls Destroyed . | . . . . . Machines Disabled . | . . . . . Actions | -11 -10 -10 -9 -9 --------- Run | Yrd Mat Min Mat Min Total 1267 | 66 500 227 358 116 Wait 6 | . . . 6 . Move 1131 | 53 446 224 292 116 Hop . | . . . . . Pick Up 24 | 7 14 . 3 . Fast Attach . | . . . . . Attach 23 | 6 9 . 8 . Detach . | . . . . . Swap 1 | . 1 . . . Drop 7 | . 6 . 1 . Fire 75 | . 24 3 48 . Melee . | . . . . . Ram . | . . . . . Kick . | . . . . . Crush . | . . . . . Escape Stasis . | . . . . . Rewire . | . . . . . Trap . | . . . . . Miscellaneous . | . . . . . Route ------- -11/Scrapyard -10/Materials -10/Mines -9/Materials -9/Mines History --------- Turn | Location | Event 20 | -11/Scrapyard | Discovered new exit (range 16) 54 | -11/Scrapyard | Entered Materials 253 | -10/Materials | Discovered new exit (range 11) 326 | -10/Materials | Build established: Mutant 352 | -10/Materials | Repaired Med. Laser 629 | -10/Materials | Entered Mines 701 | -10/Mines | Learned 2 Materials zone layouts 730 | -10/Mines | Core integrity fell below 50% 773 | -10/Mines | Met a Derelict bent on vengeance 821 | -10/Mines | Discovered new exit (range 10) 828 | -10/Mines | Learned location of Storage (-7) 840 | -10/Mines | Entered Materials 840 | -9/Materials | Evolved 2 slots: Power x1, Utility x1 879 | -9/Materials | Repaired Med. Laser 1250 | -9/Materials | Discovered new exit (range 13) 1261 | -9/Materials | Entered Mines 1263 | -9/Mines | Lost 4 parts (1p1n1u1w) 1268 | -9/Mines | Received a Rocket Launcher from a helpful Derelict 1276 | -9/Mines | Assembled infested the area 1366 | -9/Mines | Self-destructed Last Messages --------------- CJ-6D8(g): "Some of my friends down here think you need a mining laser when you travel the depths." CJ-6D8(g): "They are crazy." CJ-6D8(g): "Everyone knows a good old rocket launcher goes a long way." CJ-6D8(g): "Need to get rid of a swarm? Done. Need a big hole in the wall? Done." CJ-6D8(g): "Need a small hole in the wall? Leave that to the mining laser wimps, I say!" CJ-6D8(g): "Would you like a rocket launcher? I know I would if I were you, so I'm going to lend you mine." CJ-6D8(g) slips back into the shadows. ALERT: Infestation in the mines, dispatching Demolisher response squad. Med. Laser destroyed. Arm. Wheel destroyed. as-51926 sneak attacks. T-07 Excavator destroyed. Map ----- +----------------------------------------------------+ | ???????????## ##? #???? | | ????????????### ] #?? #???? | | ??????????????## ##?? #???? | | ????????# ####### #??? #???? | | ????????# #?## #???? | | ?????????######## #?# #???? | | ????????????????# #?# #????? | | ????????????????# #?# #????? | | ?????????????#### #?# #????? | | ?????????????# ### #????? | | ?????????????# ### #????? | | ?????????????# #?# ##????? | | ?????????????# #?# ##???? | | ?????????# ??# ### #???? | | ?????????# ## ## #???? | | ????# ## #???? | | ???# ##???? | | # ######?? | | ? ## #?? | | ? ???## #?? | | ??##??????##### ### #?? | | ??????????????## ##?# #?? | | ???????????????## ##??# #?? | | ????????????????####???# #?? | | ???????????????????????# #?? | | ???????????????????????# @#?? | | ???????????????????????# a#?? | | ???????????????????????# #?? | | ???????????????????????# #?? | | ???????????????????????# #?? | | ???????????????????????# #?? | | ???????????????????????# #?? | | ???????????????????????# #?? | | ???????????????????????# #?? | | ???????????????????????# #?? | | ???????????????????????# #?? | | ???????????????????????# #?? | | ???????????????????????# #?? | | ???????????????????????# #?? | | ???????????????????????# #?? | | ???????????????????????# #?? | | ???????????????????????# #?? | | ???????????????????????# #?? | | ?????????????#?????????# #?? | | ?????????????? #???????# #?? | | ??????????????? ????### #?? | | ???????????????# ???## #?? | | ???????????##### #### #?? | | ??????????## !%! #?? | | ??????????# = #?? | +----------------------------------------------------+ Best States ------------- Heat Dissipation 42 Energy Generation 15 Energy Capacity 525 Matter Stores 335 Matter Capacity 450 Sight Range 16 Terrain Scan Density 10 Additional Mass Support 6 Weapon Shielding 33 Evasion (%) 50 Item Schematics ----------------- None Robot Schematics ------------------ None Fabricated ------------ Nothing Repaired ---------- Med. Laser | 72% | -10/Materials Med. Laser | 60% | -9/Materials Alien Tech Used ----------------- None Achievements -------------- It's Just You Part-time Mechanic Challenges ------------ None Game ------ Seed AlloyMolecularMeganuke Manual? 0 Play Time 00:18:42 Cumulative 1.3 hours Start 2025.09.01 @ 22:35:43 End 2025.09.02 @ 17:34:09 Sessions 2 Manual Loads 0 Difficulty Rogue Special Mode None Game No. 4 Rogue 4 Adventurer 0 Explorer 0 Win Type - Total 0 Types 0/0/0/0/0/0/0/0/0/0 Lore% 0 Gallery% 3 Achievement% 4 Wizard Run 0 Options --------- Layout 1 ASCII 0 Keyboard 0 Movement Mouse Keybinds 0 Fullscreen 1 Font 32/SmallcapsGlow Map View 50x35 Zoom Use 0% Tactical HUD 0 Map Filters NONE Filters NONE Steam 1 RUN: c60d0e4c-bbbe-4d4d-91c4-515958102fb4